bitfinex/quotes_SOLUSD_20251116
["timestamp","ask_amount","ask_price","bid_price","bid_amount"]
[1763330829548,50.0,136.25,136.24,13.72785291]
[1763330829928,50.0,136.25,136.24,14.43785291]
[1763330830129,50.0,136.25,136.24,13.72785291]
[1763330830544,50.0,136.25,136.24,14.43785291]
[1763330831739,50.0,136.25,136.24,13.72785291]
[1763330831936,50.0,136.25,136.24,14.43785291]
[1763330833960,50.0,136.22,136.21,9.90887928]
[1763330834145,50.0,136.24,136.23,9.90887928]
[1763330834457,50.0,136.24,136.23,36.4991045]
[1763330834657,50.0,136.24,136.23,37.2091045]
[1763330835241,0.29,136.29,136.23,37.2091045]
[1763330835437,50.0,136.24,136.23,33.27007928]
[1763330835637,50.0,136.24,136.23,37.2091045]
[1763330836054,50.0,136.24,136.23,37.08905291]
[1763330839761,0.29,136.28,136.23,37.08905291]
[1763330839939,50.0,136.24,136.23,33.15002769]
[1763330841137,0.29,136.28,136.23,37.08905291]
[1763330841355,50.0,136.24,136.23,37.08905291]
[1763330843741,0.29,136.28,136.23,37.08905291]
[1763330843945,0.29,136.32,136.27,26.59022522]
[1763330844158,50.29,136.32,136.31,3.93902522]
[1763330844342,50.29,136.32,136.27,32.44002769]
[1763330844343,50.0,136.28,136.27,32.44002769]
[1763330844540,50.0,136.28,136.27,36.37905291]
[1763330844946,50.0,136.28,136.27,40.31807813]
[1763330845159,50.0,136.28,136.27,41.00807813]
[1763330845461,0.29,136.32,136.27,41.00807813]
[1763330845658,50.0,136.28,136.27,33.13002769]
[1763330846261,50.0,136.28,136.22,6.51541857]
[1763330846476,50.0,136.24,136.23,24.61520028]
[1763330846643,0.2,136.42,136.24,9.78882769]
[1763330846644,50.0,136.25,136.24,9.78882769]
[1763330846844,50.0,136.25,136.24,37.06905291]
[1763330851558,50.0,136.25,136.24,27.28022522]
[1763330853361,50.0,136.25,136.24,23.3412]
[1763330853553,50.0,136.25,136.24,27.28022522]
[1763330853751,50.0,136.25,136.24,37.06905291]
[1763330853965,3.93902522,136.35,136.28,22.6512]
[1763330853966,50.0,136.29,136.28,22.6512]
[1763330854176,50.0,136.29,136.28,30.52925044]
[1763330854479,50.0,136.29,136.28,27.26022522]
[1763330855080,50.0,136.29,136.28,26.59022522]
[1763330855276,50.0,136.29,136.28,27.26022522]
[1763330855465,50.0,136.29,136.28,26.59022522]
[1763330855878,50.0,136.29,136.28,3.93902522]
[1763330858262,50.0,136.24,136.23,23.3212]
[1763330858580,50.0,136.24,136.23,3.93902522]
[1763330858963,50.0,136.24,136.23,41.47147825]
[1763330859170,50.0,136.24,136.23,18.82027825]
[1763330859369,50.0,136.24,136.23,4.60902522]
[1763330861687,50.0,136.24,136.23,27.26022522]
[1763330862897,50.0,136.24,136.23,26.59022522]
[1763330863397,50.0,136.24,136.23,3.93902522]
[1763330864473,50.0,136.24,136.23,26.59022522]
[1763330864870,50.0,136.24,136.22,0.67]
[1763330865075,50.0,136.24,136.23,3.93902522]
[1763330866598,50.0,136.22,136.21,0.12005159]
[1763330866897,50.0,136.22,136.21,4.05907681]
[1763330867208,50.0,136.22,136.21,4.72907681]
[1763330868101,50.0,136.24,136.23,22.6512]
[1763330868270,50.0,136.24,136.23,26.59022522]
[1763330870783,50.0,136.25,136.24,7.50232921]
[1763330870984,50.0,136.25,136.24,11.44135443]
[1763330871677,50.29,136.25,136.24,11.44135443]
[1763330872100,50.29,136.25,136.24,3.93902522]
[1763330872595,50.0,136.25,136.24,27.26022522]
[1763330872791,50.0,136.25,136.24,26.59022522]
[1763330875681,50.0,136.25,136.24,22.6512]
[1763330875891,50.0,136.25,136.24,26.59022522]
[1763330878492,50.0,136.25,136.24,3.93902522]
[1763330879505,50.29,136.25,136.24,3.93902522]
[1763330879875,50.29,136.25,136.23,3.93902522]
[1763330879876,50.0,136.24,136.23,3.93902522]
[1763330880079,50.29,136.24,136.23,0.12005159]
[1763330880282,60.07882769,136.24,136.23,0.05426827]
[1763330880698,50.0,136.17,136.16,0.06429411]
[1763330880908,50.0,136.17,136.16,4.00331933]
[1763330881413,50.0,136.17,136.16,0.24871211]
[1763330881609,50.0,136.17,136.16,4.90773733]
[1763330882086,50.0,136.18,136.17,0.1543328]
[1763330882290,50.0,136.18,136.17,4.2822332]
[1763330882891,50.24,136.18,136.17,0.34320798]
[1763330883092,50.24,136.18,136.17,2.86727177]
[1763330883689,50.24,136.18,136.17,0.34320798]
[1763330883888,50.24,136.18,136.17,2.86727177]
[1763330884110,50.11568009,136.18,136.17,2.52406379]
[1763330884511,50.0,136.15,136.14,25.63953266]
[1763330884694,50.0,136.15,136.14,25.52953266]
[1763330885295,59.78882769,136.15,136.14,25.52953266]
[1763330885703,50.0,136.15,136.14,25.52953266]
[1763330886716,50.0,136.15,136.13,0.27333169]
[1763330886917,52.52406379,136.15,136.13,0.27333169]
[1763330887221,50.0,136.15,136.13,0.27333169]
[1763330888325,50.0,136.15,136.13,2.79739548]
[1763330888723,50.0,136.15,136.13,0.27333169]
[1763330889127,50.0,136.15,136.13,2.79739548]
[1763330889420,50.0,136.15,136.13,0.27333169]
[1763330889798,50.0,136.15,136.14,2.52406379]
[1763330890807,50.0,136.15,136.13,2.62406379]
[1763330891533,72.6512,136.15,136.13,2.62406379]
[1763330891903,72.6512,136.15,136.13,0.1]
[1763330892092,75.17526379,136.15,136.13,0.1]
[1763330892804,72.6512,136.15,136.13,0.1]
[1763330894118,72.6512,136.15,136.13,2.62406379]
[1763330894500,50.0,136.15,136.14,2.52406379]
[1763330895513,50.0,136.15,136.14,3.24406379]
[1763330897132,50.0,136.15,136.13,0.1]
[1763330897430,50.0,136.15,136.14,2.52406379]
[1763330897935,50.0,136.15,136.13,0.1]
[1763330898504,72.6512,136.15,136.13,0.27333169]
[1763330899443,2.52406379,136.14,136.13,0.27333169]
[1763330900108,75.17526379,136.15,136.13,0.27333169]
[1763330900333,72.6512,136.15,136.13,0.27333169]
[1763330901614,72.6512,136.15,136.13,2.79739548]
[1763330901813,72.6512,136.15,136.13,0.27333169]
[1763330904636,75.17526379,136.15,136.13,0.27333169]
[1763330905034,115.51289148,136.14,136.13,0.1]
[1763330905437,112.98882769,136.14,136.13,0.1]
[1763330905627,115.51289148,136.14,136.13,0.1]
[1763330907620,125.8512,136.14,136.13,0.1]
[1763330908443,138.16409148,136.14,136.13,0.1]
[1763330909032,115.51289148,136.14,136.13,0.1]
[1763330909751,112.98882769,136.14,136.13,0.1]
[1763330909957,50.0,136.15,136.13,0.27333169]
[1763330910452,22.6512,136.14,136.13,0.27333169]
[1763330911534,25.17526379,136.14,136.13,0.27333169]
[1763330911851,22.6512,136.14,136.13,0.27333169]
[1763330915850,50.0,136.15,136.13,3.44739548]
[1763330916049,50.0,136.15,136.14,2.52406379]
[1763330916226,50.0,136.15,136.14,17.05359645]
[1763330916647,50.0,136.15,136.14,17.70359645]
[1763330916835,50.0,136.15,136.14,17.05359645]
[1763330917369,62.31289148,136.15,136.13,0.27333169]
[1763330917528,2.52406379,136.14,136.13,0.27333169]
[1763330917946,138.16409148,136.14,136.13,0.27333169]
[1763330918554,138.16409148,136.14,136.13,0.1]
[1763330919240,115.51289148,136.14,136.13,0.1]
[1763330920858,115.51289148,136.14,136.13,0.04442993]
[1763330921649,115.51289148,136.14,136.13,0.21776162]
[1763330921846,124.06768664,136.14,136.13,0.21776162]
[1763330922153,72.6512,136.11,136.1,0.1]
[1763330922538,84.96409148,136.11,136.1,0.1]
[1763330923554,93.51888664,136.11,136.1,0.1]
[1763330923945,102.59336586,136.11,136.1,0.1]
[1763330924555,162.88882769,136.09,136.08,0.1]
[1763330924860,59.78882769,136.05,136.04,0.1]
[1763330925064,62.31289148,136.05,136.04,0.1]
[1763330926252,62.50098877,136.05,136.04,0.1]
[1763330926565,79.94216586,136.05,136.04,0.1]
[1763330926747,77.41810207,136.05,136.04,0.1]
[1763330927068,79.94216586,136.05,136.04,0.1]
[1763330928160,79.82211427,136.05,136.04,0.1]
[1763330929155,72.6512,136.03,136.0,0.1]
[1763330929670,75.17526379,136.03,136.0,37.08780161]
[1763330930864,75.17526379,136.03,136.02,0.04576027]
[1763330931565,72.6512,136.03,136.02,0.04576027]
[1763330931865,75.17526379,136.03,136.02,0.04576027]
[1763330932383,82.44002769,136.03,136.02,0.04576027]
[1763330932966,196.71888664,136.03,136.02,0.04576027]
[1763330933759,194.19482285,136.03,136.02,0.04576027]
[1763330934274,50.0,136.03,136.02,3.21982406]
[1763330936473,50.0,136.03,136.02,0.69576027]
[1763330936678,50.0,136.03,136.02,3.21982406]
[1763330936879,50.0,136.03,136.02,0.69576027]
[1763330937066,50.0,136.03,136.02,3.21982406]
[1763330937265,72.6512,136.03,136.02,0.69576027]
[1763330937675,72.6512,136.03,136.02,3.21982406]
[1763330938288,72.6512,136.03,136.02,0.69576027]
[1763330938460,72.6512,136.03,136.02,3.21982406]
[1763330938661,72.6512,136.03,136.02,2.56982406]
[1763330938885,50.0,136.03,136.02,2.56982406]
[1763330939064,50.0,136.03,136.02,3.21982406]
[1763330939381,59.78882769,136.04,136.02,0.04576027]
[1763330939596,62.31289148,136.04,136.02,0.04576027]
[1763330940659,62.31289148,136.04,136.0,37.08780161]
[1763330940660,22.15,136.03,136.0,0.1]
[1763330940860,31.99518374,136.01,136.0,0.04571974]
[1763330941059,31.99518374,136.01,135.97,0.1]
[1763330941060,59.78882769,135.98,135.97,0.1]
[1763330941286,90.0705013,135.98,135.97,0.1]
[1763330941482,97.09936483,135.98,135.97,0.1]
[1763330941662,82.69965221,135.98,135.97,0.1]
[1763330941864,80.17558842,135.98,135.97,0.1]
[1763330942461,82.69965221,135.98,135.97,0.1]
[1763330942862,99.9103552,135.98,135.97,0.1]
[1763330943278,59.78882769,135.91,135.9,0.1]
[1763330943481,77.13876624,135.91,135.9,0.04364395]
[1763330943659,71.1011092,135.91,135.9,0.04364395]
[1763330943859,77.13876624,135.91,135.9,0.04364395]
[1763330944287,71.1011092,135.91,135.9,0.04364395]
[1763330944484,77.13876624,135.91,135.9,0.04364395]
[1763330944681,28.68885704,135.84,135.78,6.03765704]
[1763330944996,50.0,135.81,135.8,10.52579981]
[1763330945162,22.6512,135.84,135.78,30.0129]
[1763330945163,50.0,135.79,135.78,30.0129]
[1763330945490,50.0,135.79,135.78,41.21869981]
[1763330945670,50.0,135.79,135.78,0.68]
[1763330945861,50.0,135.79,135.78,11.20579981]
[1763330946058,103.2,135.84,135.78,11.20579981]
[1763330946372,50.0,135.77,135.76,42.63020783]
[1763330946762,103.2,135.84,135.76,43.31020783]
[1763330946958,50.0,135.78,135.77,36.85597344]
[1763330947187,50.0,135.79,135.78,5.51269484]
[1763330947482,50.0,135.79,135.78,16.71849465]
[1763330947893,103.2,135.84,135.78,53.24206285]
[1763330948086,50.0,135.83,135.82,10.52579981]
[1763330948288,50.0,135.8,135.79,37.2275552]
[1763330948585,103.2,135.84,135.77,71.42197052]
[1763330948980,50.0,135.8,135.79,36.5475552]
[1763330949467,50.0,135.8,135.79,11.20579981]
[1763330949668,50.0,135.8,135.79,47.75335501]
[1763330951091,50.0,135.81,135.8,12.60541799]
[1763330951274,50.0,135.81,135.8,49.64289766]
[1763330951477,50.0,135.81,135.8,60.16869747]
[1763330952161,50.0,135.81,135.8,47.56327948]
[1763330952384,50.0,135.82,135.81,42.61831799]
[1763330952589,50.0,135.82,135.81,79.53058405]
[1763330952901,50.0,135.82,135.81,90.05638386]
[1763330953093,103.2,135.86,135.81,90.05638386]
[1763330953393,50.0,135.82,135.81,78.85058405]
[1763330953600,10.52579981,136.0,135.81,88.63941174]
[1763330953895,50.0,135.84,135.83,30.0129]
[1763330954310,9.78882769,135.98,135.83,51.0075275]
[1763330954470,50.0,135.85,135.84,33.12002769]
[1763330954972,21.20744406,135.99,135.84,33.12002769]
[1763330955176,21.20744406,135.99,135.84,9.78882769]
[1763330955177,50.0,135.85,135.84,9.78882769]
[1763330955490,50.0,135.86,135.85,32.44002769]
[1763330955692,50.0,135.88,135.87,9.78882769]
[1763330955885,50.0,135.88,135.87,32.44002769]
[1763330956077,50.0,135.88,135.87,54.17162731]
[1763330957469,50.0,135.88,135.87,43.6458275]
[1763330957670,50.0,135.88,135.87,33.85699981]
[1763330958777,50.0,135.88,135.87,43.6458275]
[1763330958972,17.74,135.91,135.88,9.78882769]
[1763330958973,50.0,135.89,135.88,9.78882769]
[1763330959175,50.0,135.89,135.88,31.53042731]
[1763330960388,17.74,135.91,135.88,31.53042731]
[1763330960599,50.0,135.89,135.88,30.84042731]
[1763330961195,67.74,135.91,135.9,32.44002769]
[1763330961375,50.0,135.91,135.9,53.49162731]
[1763330961577,50.0,135.95,135.94,22.6512]
[1763330961799,50.0,135.95,135.94,33.17699981]
[1763330962120,50.0,135.96,135.95,9.78882769]
[1763330962278,50.0,135.96,135.95,21.0046275]
[1763330963084,50.0,135.96,135.95,31.53042731]
[1763330964375,22.6512,136.11,135.98,32.44002769]
[1763330964376,50.0,135.99,135.98,32.44002769]
[1763330964596,50.0,135.99,135.98,53.49162731]
[1763330964900,50.0,135.99,135.98,54.18162731]
[1763330967314,50.0,136.0,135.99,9.78882769]
[1763330967494,50.0,136.0,135.99,31.53042731]
[1763330968491,50.0,136.0,135.99,54.18162731]
[1763330969298,50.0,136.0,135.99,33.13002769]
[1763330969497,50.0,136.0,135.99,54.18162731]
[1763330969929,50.0,136.0,135.99,44.39279962]
[1763330970722,50.0,136.0,135.99,54.18162731]
[1763330971512,50.0,136.0,135.99,43.6558275]
[1763330972210,50.0,136.0,135.99,54.18162731]
[1763330972736,50.0,135.97,135.96,0.67]
[1763330972913,50.0,135.97,135.96,53.49162731]
[1763330973221,50.0,135.98,135.97,9.78882769]
[1763330973396,50.0,135.98,135.97,20.9846275]
[1763330973595,50.0,135.98,135.97,31.51042731]
[1763330974513,50.0,135.98,135.97,20.9846275]
[1763330975314,50.0,135.98,135.97,31.51042731]
[1763330975723,50.0,136.01,136.0,32.44002769]
[1763330975918,50.0,136.01,136.0,53.49162731]
[1763330976443,50.0,136.02,136.01,9.78882769]
[1763330976614,50.0,136.02,136.01,20.9846275]
[1763330978746,50.0,136.02,136.0,33.17699981]
[1763330978919,50.0,136.02,136.01,11.19579981]
[1763330980113,50.0,136.02,136.01,10.52579981]
[1763330980928,50.0,135.97,135.96,36.16648691]
[1763330981117,50.0,135.97,135.96,10.52579981]
[1763330981547,50.0,135.97,135.94,37.5138074]
[1763330981548,50.0,135.96,135.95,14.46540907]
[1763330982643,50.0,135.96,135.95,24.99120888]
[1763330982945,50.0,135.96,135.95,14.46540907]
[1763330983244,50.0,135.97,135.96,6.32221024]
[1763330983709,50.0,135.97,135.96,16.84801005]
[1763330983917,50.0,135.97,135.96,6.32221024]
[1763330985023,50.0,135.97,135.94,10.52579981]
[1763330985345,103.2,135.99,135.95,61.06157872]
[1763330985525,103.2,135.99,135.95,50.53577891]
[1763330987249,50.0,135.97,135.96,50.8671523]
[1763330987413,103.2,135.99,135.96,50.8671523]
[1763330987739,33.17699981,136.0,135.96,50.8671523]
[1763330988124,10.52579981,135.99,135.96,50.8671523]
[1763330988839,33.17699981,136.0,135.96,50.8671523]
[1763330989042,50.0,135.97,135.96,50.8671523]
[1763330989230,50.0,135.98,135.97,14.70066539]
[1763330990726,60.52579981,135.98,135.97,14.70066539]
[1763330991056,80.99627175,135.98,135.97,14.70066539]
[1763330991222,22.6512,135.95,135.91,36.80532242]
[1763330991414,50.0,135.92,135.91,36.80532242]
[1763330991621,22.6512,135.95,135.86,49.99999999]
[1763330991817,33.17699981,135.95,135.9,79.14659266]
[1763330992021,10.52579981,135.94,135.9,79.14659266]
[1763330992229,33.17699981,135.95,135.9,89.67239247]
[1763330992417,50.0,135.91,135.9,79.14659266]
[1763330992630,10.52579981,135.93,135.9,42.18010026]
[1763330992946,22.6512,135.95,135.9,42.18010026]
[1763330992947,10.52579981,135.94,135.9,42.18010026]
[1763330993243,50.0,135.91,135.89,10.52579981]
[1763330993643,50.0,135.9,135.89,48.80724335]
[1763330993824,10.52579981,135.94,135.89,59.33304316]
[1763330994024,50.0,135.92,135.91,10.52579981]
[1763330994438,50.0,135.91,135.9,10.52579981]
[1763330994648,50.0,135.91,135.89,47.16584289]
[1763330995744,33.17699981,135.94,135.88,53.74275853]
[1763330995931,50.0,135.9,135.89,54.26604203]
[1763330996135,50.0,135.91,135.89,64.79184184]
[1763330996753,50.0,135.91,135.9,10.52579981]
[1763330996944,50.0,135.91,135.89,47.16584289]
[1763330997251,33.17699981,135.94,135.89,64.79184184]
[1763330997476,50.0,135.9,135.89,64.79184184]
[1763330998136,50.0,135.91,135.9,5.45879867]
[1763330998875,10.52579981,135.93,135.9,5.45879867]
[1763330999572,10.52579981,135.92,135.9,5.45879867]
[1763330999772,10.52579981,135.93,135.9,5.45879867]
[1763331000175,50.0,135.92,135.91,5.44056724]
[1763331000981,60.52579981,135.92,135.91,5.44056724]
[1763331002174,10.52579981,135.92,135.9,5.44056724]
[1763331002576,83.17699981,135.91,135.9,5.44056724]
[1763331003275,83.17699981,135.91,135.9,2.40760647]
[1763331003276,103.64747175,135.91,135.9,2.40760647]
[1763331003669,83.33284425,135.91,135.9,2.40760647]
[1763331003875,93.85864406,135.91,135.9,2.40760647]
[1763331004063,41.45103703,135.91,135.86,46.79990294]
[1763331004262,103.2,135.9,135.86,36.27410313]
[1763331004676,103.2,135.9,135.86,46.79990294]
[1763331004879,50.0,135.86,135.85,36.72862184]
[1763331005069,50.0,135.86,135.85,47.25442165]
[1763331005379,10.52579981,135.93,135.85,47.25442165]
[1763331005687,50.0,135.87,135.86,0.72]
[1763331005871,50.0,135.88,135.87,0.06002627]
[1763331007059,50.0,135.89,135.88,0.09003917]
[1763331007683,56.03975996,135.89,135.88,0.09003917]
[1763331007988,76.5102319,135.89,135.88,0.09003917]
[1763331008293,85.58471112,135.89,135.88,0.09003917]
[1763331008580,92.46965679,135.89,135.88,0.09003917]
[1763331009185,50.0,135.87,135.86,0.09003869]
[1763331009375,66.71697743,135.87,135.86,0.09003869]
[1763331009572,75.79145665,135.87,135.86,0.09003869]
[1763331010363,69.75169669,135.87,135.86,0.09003869]
[1763331010581,85.58028434,135.87,135.86,0.09003869]
[1763331011091,85.58028434,135.87,135.77,6.13975996]
[1763331011092,50.0,135.78,135.77,6.13975996]
[1763331011292,50.0,135.78,135.77,42.63604701]
[1763331011491,50.0,135.78,135.77,43.35604701]
[1763331011695,50.0,135.78,135.77,0.1]
[1763331012700,50.0,135.78,135.77,6.85975996]
[1763331012995,50.0,135.78,135.77,6.13975996]
[1763331013178,9.07447922,135.87,135.77,6.85975996]
[1763331013378,50.0,135.78,135.77,9.88882769]
[1763331013592,50.0,135.78,135.77,15.92858765]
[1763331013892,6.03975996,135.86,135.77,16.64858765]
[1763331014088,50.0,135.78,135.77,9.88882769]
[1763331014672,50.0,135.78,135.77,10.60882769]
[1763331015189,10.67514145,135.89,135.78,9.78882769]
[1763331015190,50.0,135.79,135.78,9.78882769]
[1763331015400,50.0,135.79,135.78,16.54858765]
[1763331015770,50.0,135.79,135.77,0.1]
[1763331015976,50.0,135.79,135.78,0.67]
[1763331016278,50.0,135.79,135.78,6.03975996]
[1763331016497,50.0,135.79,135.78,6.70975996]
[1763331016887,50.0,135.79,135.78,0.67]
[1763331017219,50.0,135.79,135.78,6.70975996]
[1763331018279,50.0,135.79,135.77,0.1]
[1763331020177,50.0,135.79,135.77,17.59628705]
[1763331021497,50.0,135.79,135.77,0.1]
[1763331022807,50.0,135.79,135.77,24.30604701]
[1763331023181,50.0,135.79,135.77,18.26628705]
[1763331023375,50.0,135.79,135.77,24.30604701]
[1763331023625,50.0,135.79,135.78,0.67]
[1763331023902,50.0,135.79,135.78,6.70975996]
[1763331024103,10.67514145,135.83,135.79,49.31915118]
[1763331024276,50.0,135.81,135.8,6.03975996]
[1763331024683,50.0,135.81,135.8,43.44149896]
[1763331025488,50.0,135.81,135.8,36.731739]
[1763331026410,50.0,135.81,135.79,6.03975996]
[1763331026609,50.0,135.79,135.78,6.03975996]
[1763331026789,50.0,135.79,135.77,35.59628705]
[1763331026985,50.0,135.79,135.77,0.1]
[1763331029619,56.03975996,135.79,135.77,0.1]
[1763331031121,50.0,135.79,135.77,0.1]
[1763331032495,6.03975996,135.78,135.77,0.1]
[1763331034117,82.45639143,135.79,135.77,0.1]
[1763331034324,6.03975996,135.78,135.77,0.1]
[1763331036811,6.03975996,135.78,135.77,0.04551475]
[1763331040528,9.90415902,135.78,135.77,0.04551475]
[1763331040726,48.38394667,135.78,135.77,0.04551475]
[1763331041232,25.73274667,135.78,135.77,0.04551475]
[1763331042835,22.2354117,135.78,135.77,0.04551475]
[1763331043129,19.69298671,135.78,135.77,0.04551475]
[1763331043318,22.2354117,135.78,135.77,0.04551475]
[1763331045041,22.2354117,135.78,135.77,0.01913497]
[1763331045331,12.44658401,135.78,135.77,0.01913497]
[1763331046816,50.0,135.74,135.73,2.54242499]
[1763331047028,2.54242499,135.77,135.72,2.54242499]
[1763331047232,50.0,135.73,135.72,2.54242499]
[1763331047437,25.19362499,135.75,135.7,1.93593088]
[1763331047636,22.6512,135.75,135.71,2.54242499]
[1763331047818,2.54242499,135.76,135.71,2.54242499]
[1763331048013,50.0,135.72,135.71,2.54242499]
[1763331048217,22.6512,135.77,135.7,1.93593088]
[1763331048418,23.0312,135.77,135.71,2.54242499]
[1763331048748,50.0,135.73,135.72,2.54242499]
[1763331048931,50.0,135.73,135.72,3.21242499]
[1763331049543,50.0,135.73,135.72,0.67]
[1763331050744,50.0,135.73,135.72,3.21242499]
[1763331054817,50.0,135.73,135.72,0.67]
[1763331055236,50.0,135.73,135.72,3.21242499]
[1763331055446,50.0,135.73,135.72,0.67]
[1763331056753,50.0,135.73,135.72,0.23469151]
[1763331057452,50.0,135.73,135.72,2.54242499]
[1763331058039,50.0,135.71,135.7,1.93593088]
[1763331058242,10.49882769,135.76,135.7,1.93593088]
[1763331058451,10.49882769,135.76,135.71,2.54242499]
[1763331058659,50.0,135.73,135.72,2.54242499]
[1763331059148,50.0,135.73,135.72,3.21242499]
[1763331060935,50.0,135.73,135.72,0.67]
[1763331061244,16.2594884,135.77,135.73,50.0]
[1763331061427,50.0,135.76,135.75,50.0]
[1763331061628,12.33125268,135.77,135.75,50.0]
[1763331061827,9.78882769,135.77,135.75,50.0]
[1763331062029,50.0,135.73,135.72,37.52210654]
[1763331063462,50.0,135.73,135.72,40.06453153]
[1763331063960,2.54242499,135.83,135.73,36.3986717]
[1763331064260,50.0,135.74,135.73,46.56837166]
[1763331064645,25.19362499,135.83,135.73,47.23837166]
[1763331064961,50.0,135.74,135.73,19.95852765]
[1763331065331,50.0,135.74,135.73,23.17095264]
[1763331065839,50.0,135.74,135.73,59.56962434]
[1763331066253,50.0,135.75,135.74,109.12453228]
[1763331066457,50.0,135.75,135.74,122.12578496]
[1763331066661,50.0,135.75,135.74,119.58335997]
[1763331067595,50.0,135.76,135.75,46.17236833]
[1763331067732,50.0,135.76,135.75,50.80992639]
[1763331068151,50.0,135.76,135.75,44.07636892]
[1763331068738,50.0,135.76,135.75,41.0210987]
[1763331069841,26.61875806,135.87,135.76,50.0]
[1763331070067,50.0,135.77,135.76,86.43715319]
[1763331070264,50.0,135.78,135.77,9.78882769]
[1763331070451,50.0,135.76,135.75,37.05354064]
[1763331070641,50.0,135.76,135.75,68.82356833]
[1763331071033,50.0,135.76,135.75,69.49356833]
[1763331071260,50.0,135.76,135.75,73.46112639]
[1763331071658,50.0,135.77,135.76,66.45005318]
[1763331071859,50.0,135.77,135.76,71.08761124]
[1763331072062,50.0,135.77,135.76,4.63755806]
[1763331072254,50.0,135.77,135.76,18.39394381]
[1763331072671,50.0,135.8,135.79,32.44002769]
[1763331072838,50.0,135.8,135.79,40.37514381]
[1763331073044,7.20460431,135.9,135.86,3.96755806]
[1763331073045,50.0,135.87,135.86,3.96755806]
[1763331073676,50.0,135.81,135.8,4.63755806]
[1763331073876,50.0,135.81,135.8,7.93511612]
[1763331074445,50.0,135.81,135.8,8.60511612]
[1763331076784,3.96755806,135.92,135.8,8.60511612]
[1763331076785,50.0,135.82,135.81,9.78882769]
[1763331077080,50.0,135.82,135.81,55.35971187]
[1763331077776,50.0,135.84,135.83,32.44002769]
[1763331078078,50.0,135.84,135.83,40.37514381]
[1763331078269,50.0,135.84,135.83,41.09514381]
[1763331079364,50.0,135.88,135.87,9.78882769]
[1763331079556,50.0,135.88,135.87,30.58631612]
[1763331079758,50.0,135.88,135.87,4.68755806]
[1763331080963,50.0,135.88,135.87,8.65511612]
[1763331084259,50.0,135.88,135.87,0.72]
[1763331084576,50.0,135.88,135.87,8.65511612]
[1763331085887,50.0,135.88,135.87,4.68755806]
[1763331086408,9.78882769,135.96,135.84,7.61761921]
[1763331086592,16.4823821,135.95,135.84,6.89761921]
[1763331086768,16.4823821,135.95,135.84,7.61761921]
[1763331087098,16.4823821,135.95,135.85,6.89761921]
[1763331087393,20.44994016,135.95,135.85,6.89761921]
[1763331087696,50.0,135.88,135.87,3.96755806]
[1763331088397,50.0,135.88,135.87,4.68755806]
[1763331088772,50.0,135.88,135.87,8.65511612]
[1763331088984,50.0,135.88,135.87,3.96755806]
[1763331089994,50.0,135.88,135.87,7.93511612]
[1763331090586,50.0,135.88,135.87,3.96755806]
[1763331090799,50.0,135.88,135.87,7.93511612]
[1763331091097,50.0,135.88,135.87,8.64511612]
[1763331091301,0.2,135.98,135.87,18.43394381]
[1763331091466,50.0,135.89,135.88,10.49882769]
[1763331092603,50.0,135.89,135.88,14.46638575]
[1763331093095,50.0,135.89,135.88,0.71]
[1763331093311,50.0,135.89,135.88,4.67755806]
[1763331096499,50.0,135.89,135.88,14.46638575]
[1763331097889,50.0,135.9,135.89,11.88973069]
[1763331098202,50.0,135.9,135.89,20.53484681]
[1763331098371,0.2,135.98,135.89,20.53484681]
[1763331098698,50.2,135.98,135.97,3.96755806]
[1763331101005,50.0,135.93,135.92,6.35875497]
[1763331102094,3.96755806,135.95,135.91,6.35875497]
[1763331102698,13.75638575,135.96,135.91,10.32631303]
[1763331103006,20.29961603,135.96,135.91,16.86954331]